bitfinex-derivatives/quotes_BTCF0:USTF0_20250904
["timestamp","ask_amount","ask_price","bid_price","bid_amount"]
[1756954273111,1.08027772,111600.0,111590.0,0.85929]
[1756954273299,1.45140839,111600.0,111590.0,0.85929]
[1756954273809,1.03437104,111600.0,111590.0,0.85929]
[1756954274106,1.40350171,111600.0,111590.0,0.02493]
[1756954274506,0.03878,111590.0,111580.0,0.02513]
[1756954274705,1.20840839,111590.0,111580.0,0.85929]
[1756954275012,1.20840839,111590.0,111580.0,0.02493]
[1756954275198,1.20840839,111590.0,111580.0,0.85929]
[1756954277008,1.21140839,111590.0,111580.0,0.85929]
[1756954277312,1.21340839,111590.0,111580.0,0.85929]
[1756954277707,0.01489,111580.0,111570.0,0.27988]
[1756954277912,1.10050171,111580.0,111570.0,0.02493]
[1756954278114,1.10050171,111580.0,111570.0,0.85925]
[1756954278414,1.12050171,111580.0,111570.0,0.87359]
[1756954278916,0.75237104,111580.0,111570.0,0.87359]
[1756954279514,0.76437104,111580.0,111570.0,0.87359]
[1756954279816,0.42437104,111580.0,111570.0,0.87359]
[1756954280016,0.76437104,111580.0,111570.0,0.87359]
[1756954280710,0.80437104,111580.0,111570.0,0.87359]
[1756954280911,0.42437104,111580.0,111570.0,0.87359]
[1756954281112,0.44437104,111580.0,111570.0,0.87359]
[1756954281517,0.42437104,111580.0,111570.0,0.87359]
[1756954281716,0.73437104,111580.0,111570.0,0.87359]
[1756954282622,0.44437104,111580.0,111570.0,0.87359]
[1756954282924,0.45313825,111580.0,111570.0,0.87359]
[1756954283126,0.78313825,111580.0,111570.0,0.87359]
[1756954283325,0.75437104,111580.0,111570.0,0.87359]
[1756954283529,0.79437104,111580.0,111570.0,0.87359]
[1756954283711,0.80313735,111580.0,111570.0,0.03927]
[1756954283916,0.79437104,111580.0,111570.0,0.87359]
[1756954284428,0.74437104,111580.0,111570.0,0.87359]
[1756954284730,1.11350171,111580.0,111570.0,0.87359]
[1756954285027,0.81350171,111580.0,111570.0,0.87359]
[1756954285227,1.10350171,111580.0,111570.0,0.87359]
[1756954285423,0.73437104,111580.0,111570.0,0.87359]
[1756954285726,0.79350171,111580.0,111570.0,0.87359]
[1756954285927,0.78437104,111580.0,111570.0,0.87359]
[1756954286226,1.15350171,111580.0,111570.0,0.87359]
[1756954286429,0.78437104,111580.0,111570.0,0.87359]
[1756954286629,1.15350171,111580.0,111570.0,0.87359]
[1756954289039,0.81350171,111580.0,111570.0,0.87359]
[1756954289234,1.16350171,111580.0,111570.0,0.87359]
[1756954290141,1.15861171,111580.0,111570.0,0.87359]
[1756954290737,0.77861171,111580.0,111570.0,0.87359]
[1756954291442,1.14350171,111580.0,111570.0,0.87359]
[1756954291745,1.44140839,111580.0,111570.0,0.02493]
[1756954291944,1.44140839,111580.0,111570.0,0.8342]
[1756954293139,1.44140839,111580.0,111570.0,0.85913]
[1756954293645,1.44135633,111580.0,111570.0,0.8342]
[1756954293839,1.17266188,111580.0,111570.0,0.02493]
[1756954294045,0.81733566,111580.0,111570.0,0.87347]
[1756954294344,0.77733566,111580.0,111570.0,0.87347]
[1756954294543,0.47733566,111580.0,111570.0,0.87347]
[1756954294746,0.82733566,111580.0,111570.0,0.87347]
[1756954296746,1.21135633,111580.0,111570.0,0.87347]
[1756954297138,1.15135633,111580.0,111570.0,0.02493]
[1756954297441,1.15135633,111580.0,111570.0,0.87347]
[1756954297845,1.15135633,111580.0,111570.0,0.85913]
[1756954298948,1.15135633,111580.0,111570.0,0.85908429]
[1756954299548,0.78222566,111580.0,111570.0,0.85908429]
[1756954299739,1.13646633,111580.0,111570.0,0.87329429]
[1756954299934,0.78733566,111580.0,111570.0,0.87329429]
[1756954300141,1.15646633,111580.0,111570.0,0.87329429]
[1756954300651,0.78733566,111580.0,111570.0,0.87329429]
[1756954300850,1.15646633,111580.0,111570.0,0.87329429]
[1756954301050,1.17254202,111580.0,111570.0,0.87329429]
[1756954301247,0.80341135,111580.0,111570.0,0.87329429]
[1756954301549,1.17254202,111580.0,111570.0,0.87329429]
[1756954301744,0.80341135,111580.0,111570.0,0.87329429]
[1756954301944,0.86254202,111580.0,111570.0,0.87329429]
[1756954302551,0.78341135,111580.0,111570.0,0.87329429]
[1756954302737,1.15254202,111580.0,111570.0,0.87329429]
[1756954303253,1.1308061,111580.0,111570.0,0.87329429]
[1756954303454,1.1525486,111580.0,111570.0,0.87329429]
[1756954306951,0.47341793,111580.0,111570.0,0.87329429]
[1756954307148,1.1925486,111580.0,111570.0,0.87329429]
[1756954308357,1.1925486,111580.0,111570.0,0.03909429]
[1756954308553,1.1925486,111580.0,111570.0,0.87325429]
[1756954309653,1.2063386,111580.0,111570.0,0.87325429]
[1756954310157,0.83720793,111580.0,111570.0,0.87325429]
[1756954310458,1.2063386,111580.0,111570.0,0.87325429]
[1756954312553,1.2063386,111580.0,111570.0,0.03909429]
[1756954312752,1.2063386,111580.0,111570.0,0.87325429]
[1756954313558,1.2063386,111580.0,111570.0,0.85904429]
[1756954313756,1.2063386,111580.0,111570.0,0.85900429]
[1756954316058,1.2063386,111580.0,111570.0,0.87321429]
[1756954317363,1.2063386,111580.0,111570.0,0.03909429]
[1756954317562,1.2063386,111580.0,111570.0,0.87317429]
[1756954319467,1.20668793,111580.0,111570.0,0.87317429]
[1756954321066,1.19289793,111580.0,111570.0,0.87317429]
[1756954321263,0.82341793,111580.0,111570.0,0.87317429]
[1756954321571,1.20668793,111580.0,111570.0,0.87317429]
[1756954324165,1.19289793,111580.0,111570.0,0.87317429]
[1756954324369,0.82341793,111580.0,111570.0,0.87317429]
[1756954324668,1.19289793,111580.0,111570.0,0.87317429]
[1756954325170,0.47341793,111580.0,111570.0,0.87317429]
[1756954325572,0.47341793,111580.0,111570.0,1.12317429]
[1756954327471,0.49341793,111580.0,111570.0,1.12317429]
[1756954327770,0.86289793,111580.0,111570.0,0.28909429]
[1756954328070,1.18289793,111580.0,111570.0,1.12305429]
[1756954328871,0.86289793,111580.0,111570.0,1.12305429]
[1756954329084,1.16289793,111580.0,111570.0,1.12305429]
[1756954329572,1.16289793,111580.0,111570.0,0.28909429]
[1756954329762,0.86289793,111580.0,111570.0,1.12305429]
[1756954331672,0.84289793,111580.0,111570.0,1.12305429]
[1756954331875,0.47341793,111580.0,111570.0,1.49253429]
[1756954332479,0.07280485,111580.0,111570.0,1.86201429]
[1756954332777,0.07280485,111580.0,111570.0,2.60097429]
[1756954332978,0.0247425,111580.0,111570.0,2.96177429]
[1756954333577,0.0237425,111580.0,111570.0,2.96177429]
[1756954334375,0.0217425,111580.0,111570.0,2.96177429]
[1756954334572,0.0217425,111580.0,111570.0,0.64989429]
[1756954334878,0.0217425,111580.0,111570.0,1.85325429]
[1756954337479,0.0217425,111580.0,111570.0,2.22273429]
[1756954342377,0.0217425,111580.0,111570.0,2.22253429]
[1756954342578,0.0217425,111580.0,111570.0,1.48357429]
[1756954342778,0.0217425,111580.0,111570.0,2.22253429]
[1756954345185,0.0217425,111580.0,111570.0,2.22245429]
[1756954345382,0.0217425,111580.0,111570.0,1.38885429]
[1756954345685,0.0217425,111580.0,111570.0,2.22241429]
[1756954346495,0.0217425,111580.0,111570.0,1.97241429]
[1756954346697,0.0217425,111580.0,111570.0,2.71137429]
[1756954347596,0.0217425,111580.0,111570.0,2.71237429]
[1756954348899,0.0217425,111580.0,111570.0,2.71337429]
[1756954349199,0.0217425,111580.0,111570.0,2.71237429]
[1756954349392,0.0217425,111580.0,111570.0,2.71137429]
[1756954349892,0.0217425,111580.0,111570.0,2.71129429]
[1756954350094,0.0217425,111580.0,111570.0,2.71125429]
[1756954351096,0.0217425,111580.0,111570.0,2.97645429]
[1756954353001,0.0217425,111580.0,111570.0,2.97641429]
[1756954353403,0.0217425,111580.0,111570.0,2.14301429]
[1756954353702,0.0217425,111580.0,111570.0,2.97637429]
[1756954355701,0.0217425,111580.0,111570.0,2.14301429]
[1756954355907,0.0217425,111580.0,111570.0,2.97637429]
[1756954357101,0.0217425,111580.0,111570.0,2.14301429]
[1756954357417,0.7767725,111580.0,111570.0,1.13757429]
[1756954357598,0.83855485,111580.0,111570.0,0.30429429]
[1756954357801,0.46907485,111580.0,111570.0,1.50705429]
[1756954358301,0.81907485,111580.0,111570.0,1.50705429]
[1756954358501,0.45535485,111580.0,111570.0,1.50705429]
[1756954358706,0.45735485,111580.0,111570.0,1.50705429]
[1756954358995,0.45835485,111580.0,111570.0,1.50705429]
[1756954359809,0.45835485,111580.0,111570.0,0.30429429]
[1756954360010,0.45835485,111580.0,111570.0,1.50701429]
[1756954360309,0.79835485,111580.0,111570.0,1.50701429]
[1756954361009,0.4302925,111580.0,111570.0,1.13753429]
[1756954361209,0.4102925,111580.0,111570.0,1.50701429]
[1756954362312,0.45835485,111580.0,111570.0,1.50701429]
[1756954363013,0.45835485,111580.0,111570.0,1.24181429]
[1756954363513,0.45849155,111580.0,111570.0,1.24181429]
[1756954363908,0.09769155,111580.0,111570.0,1.24181429]
[1756954364106,0.0248792,111580.0,111570.0,1.24181429]
[1756954365214,0.0228792,111580.0,111570.0,1.24181429]
[1756954365410,0.0218792,111580.0,111570.0,1.24181429]
[1756954365616,0.0218792,111580.0,111570.0,2.71105429]
[1756954365913,0.0238792,111580.0,111570.0,2.71105429]
[1756954366109,0.0248792,111580.0,111570.0,2.71105429]
[1756954367812,0.0228792,111580.0,111570.0,2.71105429]
[1756954368616,0.0218792,111580.0,111570.0,2.71105429]
[1756954368810,0.0218792,111580.0,111570.0,2.97625429]
[1756954369415,0.0218792,111580.0,111570.0,1.03457429]
[1756954369618,0.0218792,111580.0,111570.0,1.86761429]
[1756954371319,0.0238792,111580.0,111570.0,1.86761429]
[1756954371820,0.0248792,111580.0,111570.0,1.86761429]
[1756954372813,0.0248792,111580.0,111570.0,1.49813429]
[1756954373015,0.0248792,111580.0,111570.0,1.86761429]
[1756954376820,0.0248792,111580.0,111570.0,2.23709429]
[1756954377518,0.0248792,111580.0,111570.0,2.97605429]
[1756954377817,0.0248792,111580.0,111570.0,3.25605429]
[1756954378523,0.0238792,111580.0,111570.0,3.25605429]
[1756954379122,0.0218792,111580.0,111570.0,3.25605429]
[1756954379319,0.0218792,111580.0,111570.0,3.00705429]
[1756954380215,0.0218792,111580.0,111570.0,2.17401429]
[1756954380419,0.0218792,111580.0,111570.0,3.00677429]
[1756954381233,0.0218792,111580.0,111570.0,3.00777429]
[1756954381422,0.0218792,111580.0,111570.0,3.00677429]
[1756954381618,0.0218792,111580.0,111570.0,3.00586405]
[1756954381817,0.0218792,111580.0,111570.0,3.00486405]
[1756954382527,0.0218792,111580.0,111570.0,0.69509429]
[1756954382725,0.0453592,111580.0,111570.0,2.17210405]
[1756954383026,0.0453592,111580.0,111570.0,3.00478405]
[1756954384514,0.0453592,111580.0,111570.0,1.06434673]
[1756954384716,0.0453592,111580.0,111570.0,1.89702673]
[1756954385419,0.0453592,111580.0,111570.0,1.53622673]
[1756954385927,0.0463592,111580.0,111570.0,1.53622673]
[1756954387232,0.0483592,111580.0,111570.0,0.70354673]
[1756954387527,0.4091592,111580.0,111570.0,1.53610673]
[1756954398336,0.4091592,111580.0,111570.0,1.53586673]
[1756954398528,0.7691592,111580.0,111570.0,1.53586673]
[1756954399330,0.81722155,111580.0,111570.0,1.53586673]
[1756954399638,0.45722155,111580.0,111570.0,1.53586673]
[1756954400038,0.45722155,111580.0,111570.0,0.70354673]
[1756954400239,0.45722155,111580.0,111570.0,1.53582673]
[1756954400738,0.4091592,111580.0,111570.0,1.53582673]
[1756954401937,0.4091592,111580.0,111570.0,1.16657429]
[1756954402138,0.4091592,111580.0,111570.0,1.53582673]
[1756954402538,0.7391592,111580.0,111570.0,1.53582673]
[1756954402740,0.4091592,111580.0,111570.0,1.53582673]
[1756954403938,0.4091592,111580.0,111570.0,0.70354673]
[1756954404241,0.4091592,111580.0,111570.0,1.53570673]
[1756954404845,0.7191592,111580.0,111570.0,0.70354673]
[1756954405036,0.4091592,111580.0,111570.0,1.53566673]
[1756954412845,0.7691592,111580.0,111570.0,0.33429429]
[1756954413143,0.7691592,111580.0,111570.0,1.53546673]
[1756954413444,0.4091592,111580.0,111570.0,1.53546673]
[1756954415353,0.7291592,111580.0,111570.0,1.53546673]
[1756954415541,0.4091592,111580.0,111570.0,1.53546673]
[1756954416246,0.7791592,111580.0,111570.0,1.53546673]
[1756954416547,0.7491592,111580.0,111570.0,1.53546673]
[1756954416847,0.4091592,111580.0,111570.0,1.53546673]
[1756954418650,0.4091592,111580.0,111570.0,1.16621429]
[1756954418852,0.4091592,111580.0,111570.0,1.53546673]
[1756954423454,0.4091592,111580.0,111570.0,1.50546673]
[1756954423649,0.4091592,111580.0,111570.0,0.68354673]
[1756954423856,0.4091592,111580.0,111570.0,1.51518673]
[1756954428152,0.3856792,111580.0,111570.0,1.51518673]
[1756954433661,0.4093792,111580.0,111570.0,1.51494673]
[1756954433860,0.3856792,111580.0,111570.0,1.51494673]
[1756954435463,0.4093792,111580.0,111570.0,0.31429429]
[1756954435657,0.4093792,111580.0,111570.0,1.51490673]
[1756954435961,0.4093792,111580.0,111570.0,1.51482673]
[1756954438458,0.4093792,111580.0,111570.0,1.53478673]
[1756954439361,0.4093792,111580.0,111570.0,0.70354673]
[1756954439662,0.4093792,111580.0,111570.0,1.53474673]
[1756954440065,0.4093792,111580.0,111570.0,1.26954673]
[1756954441665,0.45744155,111580.0,111570.0,1.26954673]
[1756954443566,0.45744155,111580.0,111570.0,1.26966933]
[1756954444766,0.45744155,111580.0,111570.0,0.90029429]
[1756954444967,0.45744155,111580.0,111570.0,1.26966933]
[1756954445666,0.45744155,111580.0,111570.0,0.90029429]
[1756954445868,0.45744155,111580.0,111570.0,1.26966933]
[1756954448364,0.45744155,111580.0,111570.0,1.26938933]
[1756954451069,0.4093792,111580.0,111570.0,1.26938933]
[1756954453171,0.4093792,111580.0,111570.0,0.06909429]
[1756954453360,0.4093792,111580.0,111570.0,1.26922933]
[1756954453972,0.4093792,111580.0,111570.0,0.43846933]
[1756954454169,0.4093792,111580.0,111570.0,1.26922933]
[1756954455472,0.3856792,111580.0,111570.0,1.26922933]
[1756954455672,0.0248792,111580.0,111570.0,1.99940437]
[1756954455870,0.0248792,111580.0,111570.0,2.33940437]
[1756954456976,0.0248792,111580.0,111570.0,3.32815445]
[1756954457270,0.0238792,111580.0,111570.0,3.32815445]
[1756954457869,0.0228792,111580.0,111570.0,3.59335445]
[1756954458069,0.0228792,111580.0,111570.0,3.61462323]
[1756954462278,0.0228792,111580.0,111570.0,3.70422023]
[1756954463678,0.0228792,111580.0,111570.0,3.61562323]
[1756954464473,0.43309235,111600.0,111590.0,0.03893]
[1756954464674,0.43309235,111600.0,111590.0,1.23874504]
[1756954465771,0.002,111600.0,111590.0,1.23874504]
[1756954466876,0.003,111600.0,111590.0,1.23874504]
[1756954467681,0.003,111600.0,111590.0,1.2475588]
[1756954469879,0.02723,111600.0,111590.0,1.2475588]
[1756954470081,0.02723,111600.0,111590.0,1.2473588]
[1756954471384,0.38803,111600.0,111590.0,1.23850504]
[1756954471971,0.70803,111600.0,111590.0,1.24757963]
[1756954472175,0.38803,111600.0,111590.0,1.24757963]
[1756954473681,0.38803,111600.0,111590.0,1.23842504]
[1756954475186,0.38803,111600.0,111590.0,1.24718978]
[1756954475394,0.43609235,111600.0,111590.0,1.23842504]
[1756954476281,0.43609235,111600.0,111590.0,0.86905]
[1756954476484,0.45790769,111600.0,111590.0,0.86905]
[1756954476785,0.45790769,111600.0,111590.0,1.23842504]
[1756954480888,0.45790769,111600.0,111590.0,0.40830504]
[1756954481087,0.45790769,111600.0,111590.0,1.23822504]
[1756954483601,0.43367769,111600.0,111590.0,1.23822504]
[1756954483785,0.43365601,111600.0,111590.0,1.23822504]
[1756954484088,0.43365601,111600.0,111590.0,1.55822504]
[1756954484289,0.43365601,111600.0,111590.0,0.72830504]
[1756954484490,0.45734601,111600.0,111590.0,1.55814504]
[1756954485987,0.09654601,111600.0,111590.0,1.55814504]
[1756954486191,0.45734601,111600.0,111590.0,1.55814504]
[1756954489492,0.45734601,111600.0,111590.0,1.55805203]
[1756954493402,0.45734601,111600.0,111590.0,0.99341203]
[1756954493600,0.45734601,111600.0,111590.0,1.87301203]
[1756954494090,0.45734601,111600.0,111590.0,1.86301203]
[1756954494289,0.09654601,111600.0,111590.0,1.86301203]
[1756954494693,0.45734601,111600.0,111590.0,1.86301203]
[1756954497397,0.45734601,111600.0,111590.0,1.50293203]
[1756954497700,0.45734601,111600.0,111590.0,0.98341203]
[1756954497997,0.45734601,111600.0,111590.0,1.88289203]
[1756954498699,0.45734601,111600.0,111590.0,1.05341203]
[1756954498900,0.45734601,111600.0,111590.0,1.84289203]
[1756954499399,0.45734601,111600.0,111590.0,1.01341203]
[1756954499601,0.45734601,111600.0,111590.0,1.85285203]
[1756954499901,0.45734601,111600.0,111590.0,1.02341203]
[1756954500200,0.45734601,111600.0,111590.0,1.84281203]
[1756954500407,0.45734601,111600.0,111590.0,1.13343699]
[1756954500589,0.45734601,111600.0,111590.0,1.82281203]
[1756954501098,0.45734601,111600.0,111590.0,1.45343699]
[1756954501293,0.45734601,111600.0,111590.0,1.82281203]
[1756954502001,0.43555235,111600.0,111590.0,1.82281203]
[1756954502202,0.45738097,111600.0,111590.0,1.45343699]
[1756954502390,0.45738097,111600.0,111590.0,1.82281203]
[1756954503503,0.45738097,111600.0,111590.0,1.82265473]
[1756954506602,0.45738097,111600.0,111590.0,1.55745473]
[1756954507301,0.45738097,111600.0,111590.0,0.72805473]
[1756954507501,0.45738097,111600.0,111590.0,1.23721473]
[1756954507702,0.45738097,111600.0,111590.0,1.61721473]
[1756954507906,0.45738097,111600.0,111590.0,1.55721473]
[1756954510301,0.45738097,111600.0,111590.0,0.72805473]
[1756954510496,0.45738097,111600.0,111590.0,1.58717473]
[1756954514506,0.09658097,111600.0,111590.0,1.58717473]
[1756954515009,0.04851862,111600.0,111590.0,1.58717473]
[1756954517108,0.04851862,111600.0,111590.0,1.85237473]
[1756954517610,0.02482862,111600.0,111590.0,1.85237473]
[1756954518106,0.02482862,111600.0,111590.0,1.85209473]
[1756954518309,0.38562862,111600.0,111590.0,1.85209473]
[1756954519110,0.40850862,111600.0,111590.0,1.48283699]
[1756954519307,0.40850862,111600.0,111590.0,1.02325473]
[1756954519505,1.40772636,111600.0,111590.0,1.48283699]
[1756954519811,1.42269636,111600.0,111590.0,1.13283699]
[1756954520311,1.05347862,111600.0,111590.0,1.13283699]
[1756954520506,1.42269636,111600.0,111590.0,1.13283699]
[1756954520810,1.42269636,111600.0,111590.0,1.13279699]
[1756954521705,0.65850862,111600.0,111590.0,1.50201473]
[1756954522610,0.65850862,111600.0,111590.0,1.82201473]
[1756954523110,0.65850862,111600.0,111590.0,1.55681473]
[1756954523607,0.65850862,111600.0,111590.0,1.23681473]
[1756954524905,1.08657097,111600.0,111590.0,1.23681473]
[1756954525613,1.08657097,111600.0,111590.0,0.86759699]
[1756954525806,1.08657097,111600.0,111590.0,1.23681473]
[1756954526008,1.08657097,111600.0,111590.0,0.40805473]
[1756954526207,1.08657097,111600.0,111590.0,1.23669473]
[1756954526701,1.08657097,111600.0,111590.0,0.86747699]
[1756954527712,0.70657097,111600.0,111590.0,1.23669473]
[1756954528800,0.65850862,111600.0,111590.0,1.23669473]
[1756954531115,0.70657097,111600.0,111590.0,1.23669473]
[1756954531917,1.05657097,111600.0,111590.0,1.23669473]
[1756954535121,1.05657097,111600.0,111590.0,0.40805473]
[1756954535322,1.05657097,111600.0,111590.0,1.23641473]
[1756954535727,1.05657097,111600.0,111590.0,0.86719699]
[1756954536937,0.70657097,111600.0,111590.0,0.86719699]
[1756954537130,1.01657097,111600.0,111590.0,0.86719699]
[1756954537536,0.70657097,111600.0,111590.0,0.86719699]
[1756954537930,0.70657097,111600.0,111590.0,1.23641473]
[1756954538137,0.72154097,111600.0,111590.0,0.85259]
[1756954538332,0.72154097,111600.0,111590.0,0.86707]
[1756954538632,0.73746405,111600.0,111590.0,0.86707]
[1756954539033,1.09171179,111600.0,111590.0,0.86707]
[1756954539438,0.72249405,111600.0,111590.0,0.86707]
[1756954540137,1.07249405,111600.0,111590.0,0.86707]
[1756954541038,1.05658155,111600.0,111590.0,0.86707]
[1756954543941,1.05659314,111600.0,111590.0,0.86707]
[1756954544334,0.70659314,111600.0,111590.0,0.86707]
[1756954544939,1.03659314,111600.0,111590.0,0.86707]
[1756954547143,0.70659314,111600.0,111590.0,0.86707]
[1756954547342,1.03659314,111600.0,111590.0,0.86707]
[1756954547742,0.70659314,111600.0,111590.0,0.86707]
[1756954547946,0.70659314,111600.0,111590.0,1.23628774]
[1756954549944,0.72018314,111600.0,111590.0,0.40800774]
[1756954550138,1.06018314,111600.0,111590.0,1.23592774]
[1756954550947,1.06018314,111600.0,111590.0,1.28172774]
[1756954551139,1.06018314,111600.0,111590.0,0.91251]
[1756954551843,0.69938314,111600.0,111590.0,0.91251]
[1756954552048,1.06018314,111600.0,111590.0,0.91251]
[1756954553948,0.69938314,111600.0,111590.0,1.28172774]
[1756954554243,1.06018314,111600.0,111590.0,1.28172774]
[1756954555046,1.06018314,111600.0,111590.0,0.08459]
[1756954555246,1.06018314,111600.0,111590.0,1.28156774]
[1756954559146,0.81018314,111600.0,111590.0,1.28156774]
[1756954559350,0.81018314,111600.0,111590.0,0.91235]
[1756954559852,0.79659314,111600.0,111590.0,0.91235]
[1756954560350,0.79659314,111600.0,111590.0,0.91227]
[1756954560650,0.74852021,111600.0,111590.0,0.91227]
[1756954562053,0.40852021,111600.0,111590.0,0.91227]
[1756954562248,0.74852021,111600.0,111590.0,0.91227]
[1756954562856,0.40852021,111600.0,111590.0,0.91227]
[1756954563347,0.77773795,111600.0,111590.0,0.91227]
[1756954564050,0.40852021,111600.0,111590.0,0.91227]
[1756954565156,0.40852021,111600.0,111590.0,1.28148774]
[1756954565551,0.40852021,111600.0,111590.0,1.28149874]
[1756954566153,0.40852021,111600.0,111590.0,1.36149874]
[1756954571054,0.47250564,111600.0,111590.0,1.36149874]
[1756954577957,0.47250564,111600.0,111590.0,0.99227]
[1756954578156,0.47250564,111600.0,111590.0,1.36149874]
[1756954581165,0.45667842,111600.0,111590.0,1.36149874]
[1756954582959,0.38564021,111600.0,111590.0,1.36149874]
[1756954583263,0.43379852,111600.0,111590.0,1.87149874]
[1756954585267,0.43379852,111600.0,111590.0,1.50227]
[1756954585459,0.45768852,111600.0,111590.0,1.87069874]
[1756954586158,0.45768852,111600.0,111590.0,0.67459]
[1756954586360,0.45768852,111600.0,111590.0,1.50143]
[1756954586866,0.45768852,111600.0,111590.0,1.87065874]
[1756954588368,0.45768852,111600.0,111590.0,2.13585874]
[1756954589266,0.45768852,111600.0,111590.0,1.76663]
[1756954589468,0.45768852,111600.0,111590.0,2.13585874]
[1756954590868,0.43379852,111600.0,111590.0,2.13585874]
[1756954591167,0.02484021,111600.0,111590.0,2.13585874]
[1756954592168,0.02484021,111600.0,111590.0,2.50508748]
[1756954592365,0.02484021,111600.0,111590.0,2.13585874]
[1756954593569,0.02484021,111600.0,111590.0,2.13574648]
[1756954594369,0.02484021,111600.0,111590.0,2.49654648]
[1756954596971,0.02484021,111600.0,111590.0,2.15654648]
[1756954603073,0.02484021,111600.0,111590.0,0.96059]
[1756954603278,0.02484021,111600.0,111590.0,2.15606648]
[1756954604578,0.02484021,111600.0,111590.0,1.32970648]
[1756954604779,0.02484021,111600.0,111590.0,2.15602648]
[1756954604979,0.02484021,111600.0,111590.0,2.15598648]
[1756954605282,1.02739669,111600.0,111590.0,0.34979]
[1756954605575,1.04222669,111600.0,111590.0,1.17603]
[1756954606072,0.67311021,111600.0,111590.0,1.17603]
[1756954609182,0.65828021,111600.0,111590.0,1.54514648]
[1756954609570,0.65828021,111600.0,111590.0,1.90514648]
[1756954610776,0.65828021,111600.0,111590.0,1.07890648]
[1756954610984,0.65828021,111600.0,111590.0,1.90506648]
[1756954617688,0.65828021,111600.0,111590.0,1.53595]
[1756954617986,0.65828021,111600.0,111590.0,1.90506648]
[1756954618186,0.65828021,111600.0,111590.0,1.53595]
[1756954619188,0.40828021,111600.0,111590.0,1.53595]
[1756954619886,0.40828021,111600.0,111590.0,1.90506648]
[1756954620388,0.40823817,111600.0,111590.0,1.90506648]
[1756954621094,0.45639648,111600.0,111590.0,1.90506648]
[1756954621280,0.45639648,111600.0,111590.0,1.53595]
[1756954621477,0.82551296,111600.0,111590.0,0.70979]
[1756954621683,0.82551296,111600.0,111590.0,1.53563]
[1756954623381,0.45639648,111600.0,111590.0,1.53563]
[1756954623582,1.17551296,111600.0,111590.0,1.53563]
[1756954623986,1.17551296,111600.0,111590.0,1.27043]
[1756954624386,0.82551296,111600.0,111590.0,1.27043]
[1756954624684,0.82551296,111600.0,111590.0,0.43011]
[1756954624685,2.56351952,111600.0,111590.0,0.43011]
[1756954624892,2.55351952,111600.0,111590.0,0.1758]
[1756954625191,2.55351952,111600.0,111590.0,1.00152]
[1756954625980,1.0770536,111600.0,111590.0,1.00152]
[1756954626287,2.55351952,111600.0,111590.0,0.1758]
[1756954626484,2.58480446,111600.0,111590.0,0.1758]
[1756954626684,2.6650875,111600.0,111590.0,0.87148]
[1756954627488,2.58611506,111600.0,111590.0,0.87148]
[1756954628191,2.58611506,111600.0,111590.0,0.0458]
[1756954628394,2.58611506,111600.0,111590.0,0.87148]
[1756954628395,2.6663981,111600.0,111590.0,0.87148]
[1756954628590,2.6663981,111600.0,111580.0,0.0002]
[1756954628792,2.17526042,111590.0,111580.0,0.0002]
[1756954628995,3.33929469,111590.0,111570.0,0.82588]
[1756954629200,1.92521028,111580.0,111570.0,0.82588]
[1756954629396,1.14867606,111580.0,111570.0,0.82568]
[1756954629598,1.24559636,111580.0,111570.0,0.82568]
[1756954630186,1.24559636,111580.0,111560.0,0.84078]
[1756954630388,0.80083338,111570.0,111560.0,0.92505]
[1756954630593,1.18164322,111570.0,111560.0,0.09861]
[1756954631296,1.13365397,111570.0,111560.0,0.09861]
[1756954632098,0.81219909,111570.0,111560.0,0.09861]
[1756954632295,1.13365397,111570.0,111560.0,0.09861]
[1756954633096,1.13365397,111570.0,111560.0,0.09961]
[1756954633791,1.13365397,111570.0,111560.0,0.10061]
[1756954635091,0.76420984,111570.0,111560.0,0.10061]
[1756954635293,1.13365397,111570.0,111560.0,0.10061]
[1756954635491,1.5030981,111570.0,111560.0,0.10061]
[1756954635888,1.5030981,111570.0,111560.0,0.04061]
[1756954636096,1.55108735,111570.0,111560.0,0.04509]
[1756954636288,2.63870129,111570.0,111560.0,0.00648]
[1756954636488,2.6547458,111570.0,111560.0,0.00648]
[1756954636700,3.4812658,111570.0,111560.0,0.00648]
[1756954636893,0.0219,111560.0,111550.0,0.0002]
[1756954637089,0.81057615,111560.0,111550.0,0.02427]
[1756954637293,0.81057615,111560.0,111550.0,0.0381]
[1756954637294,1.21422346,111560.0,111550.0,0.0381]
[1756954637695,1.28576886,111560.0,111550.0,0.0381]
[1756954637894,0.91632473,111560.0,111550.0,0.0401]
[1756954638096,1.28576886,111560.0,111550.0,0.0401]
[1756954638792,0.91632473,111560.0,111550.0,0.0411]
[1756954638992,1.28576886,111560.0,111550.0,0.0411]
[1756954639702,1.28576886,111560.0,111550.0,0.01683]
[1756954639902,1.28576886,111560.0,111550.0,0.0411]
[1756954641104,1.28576886,111560.0,111550.0,0.003]
[1756954641308,1.23789271,111560.0,111550.0,0.003]
[1756954641495,1.28576886,111560.0,111550.0,0.003]
[1756954642097,2.64410125,111560.0,111540.0,0.01911]
[1756954642297,2.64410125,111560.0,111540.0,0.01369]
[1756954642298,1.63243789,111550.0,111540.0,0.01369]
[1756954642498,1.9502023,111550.0,111540.0,0.01349]
[1756954642806,3.40189698,111550.0,111530.0,0.0002]
[1756954642995,1.90225759,111540.0,111530.0,0.0002]
[1756954643193,2.24405576,111540.0,111520.0,0.0815]
[1756954643509,0.77800613,111530.0,111520.0,0.0815]
[1756954643710,1.1088043,111530.0,111520.0,0.0813]
[1756954644403,0.73936017,111530.0,111520.0,0.0813]
[1756954644602,1.1088043,111530.0,111520.0,0.0813]
[1756954645102,0.73936017,111530.0,111520.0,0.0813]
[1756954645304,1.1088043,111530.0,111520.0,0.0813]
[1756954645702,0.73936017,111530.0,111520.0,0.0813]
[1756954645909,1.1388043,111530.0,111520.0,0.0813]
[1756954646306,1.1388043,111530.0,111520.0,0.05703]
[1756954646509,1.1388043,111530.0,111520.0,0.0813]
[1756954647903,1.1388043,111530.0,111520.0,0.0381]
[1756954647904,0.7988043,111530.0,111520.0,0.0381]
[1756954648109,1.1188043,111530.0,111520.0,0.0381]
[1756954650608,1.1388043,111530.0,111520.0,0.0381]
[1756954652407,0.76936017,111530.0,111520.0,0.0381]
[1756954652805,1.1388043,111530.0,111520.0,0.0381]
[1756954655510,1.0920423,111530.0,111520.0,0.0381]
[1756954657310,1.15572337,111530.0,111520.0,0.0381]
[1756954660511,0.78627924,111530.0,111520.0,0.0381]
[1756954660815,1.15572337,111530.0,111520.0,0.0381]
[1756954662418,1.17225232,111530.0,111520.0,0.0381]
[1756954662611,1.09196928,111530.0,111520.0,0.0381]
[1756954663317,1.17225232,111530.0,111520.0,0.0381]
[1756954664119,1.17225232,111530.0,111520.0,0.03749]
[1756954664920,0.80280819,111530.0,111520.0,0.03749]
[1756954665122,1.17225232,111530.0,111520.0,0.03749]